Cogmind - Beta 14 *** ADVENTURER MODE // 2025.05.02 @ 01:57:51 Player: Themeralderp Result: Destroyed by PV-4MJ(z) with Makeshift Shrapnel Gun Performance ------------- Evolutions (1) 500 Regions Visited (4) 800 Robots Destroyed (78) 390 Value Destroyed (1452) 1452 Prototype IDs (7) 140 Alien Tech Used (0) 0 Bonus (-59) -59 TOTAL SCORE: 3223 Bonus ------- Friendly Fire -59 Cogmind --------- Core Integrity 0/400 Matter 90/300 Energy 80/100 System Corruption 6% Temperature Danger (485) Movement Core (200) Ox3 Location -7/Zion Parts ------- > --- POWER (1) -------- (None) > --- PROPULSION (2) --- (None) > --- UTILITY (3) ------ Medium Storage Unit > --- WEAPON (3) ------- (None) > --- INVENTORY (10) --- Makeshift Leg Medium Storage Unit Tractor Beam Advanced Beam Rifle Improved Datajack Makeshift Hammer Makeshift Sword Self-destruct Interrupter (50) Peak State ------------ > --- POWER ------------ Nuclear Core > --- PROPULSION ------- Makeshift Leg Makeshift Leg > --- UTILITY ---------- Medium Storage Unit Visual Processing Unit Makeshift Light Armor Plating > --- WEAPON ----------- Particle Cannon Particle Cannon Makeshift Shrapnel Gun > --- INVENTORY -------- Makeshift Leg Medium Storage Unit Tractor Beam Advanced Beam Rifle Particle Cannon Improved Datajack Makeshift Hammer Makeshift Sword Self-destruct Interrupter [Rating: 28] Favorites ----------- Power Cooled Ion Engine Engine Cooled Ion Engine Power Core Nuclear Core Propulsion Compact Wheel Leg Aluminum Leg Wheel Compact Wheel Utility Medium Storage Unit Device Heat Sink Storage Medium Storage Unit Processor Visual Processing Unit Protection Makeshift Light Armor Plating Weapon Particle Cannon Energy Gun Advanced Beam Rifle Energy Cannon Particle Cannon Ballistic Gun Light Assault Rifle Ballistic Cannon Bore Cannon Impact Weapon Makeshift Hammer Piercing Weapon Makeshift Spear Special Melee Weapon Datajack Build | -11 -10 -9 -9 -7 ------- Run | Yrd Mat Mat Min Zio Slots Evolved 2 | . . 2 . . Power . | . . . . . Propulsion . | . . . . . Utility 1 | . . 1 . . Weapon 1 | . . 1 . . Parts Attached 69 | 7 19 24 . 19 Power 9 | 1 4 2 . 2 Engine 8 | 1 4 2 . 1 Core 1 | . . . . 1 Reactor . | . . . . . Propulsion 20 | 2 5 10 . 3 Treads . | . . . . . Leg 11 | 2 5 2 . 2 Wheel 9 | . . 8 . 1 Hover . | . . . . . Flight . | . . . . . Utility 9 | 2 3 2 . 2 Device 3 | 1 . 2 . . Storage 3 | 1 1 . . 1 Processor 2 | . 2 . . . Hackware . | . . . . . Protection 1 | . . . . 1 Artifact . | . . . . . Weapon 31 | 2 7 10 . 12 Energy Gun 8 | . 3 4 . 1 Energy Cannon 14 | . 3 6 . 5 Ballistic Gun 4 | 2 . . . 2 Ballistic Cannon 1 | . . . . 1 Launcher . | . . . . . Special Weapon . | . . . . . Impact Weapon 2 | . . . . 2 Slashing Weapon . | . . . . . Piercing Weapon 1 | . . . . 1 Special Melee Weapon 1 | . 1 . . . Unidentified Prototypes 3 | . . 3 . . Parts Lost 15 | . . 2 . 13 Power 1 | . . . . 1 Propulsion 5 | . . . . 5 Utility 3 | . . 1 . 2 Weapon 6 | . . 1 . 5 Highest Loss Streak 8 | . . 1 . 8 To Critical Strikes 1 | . . . . 1 Average Slot Usage (%) 96 | . 98 99 . 91 Engine 11 | . 13 11 . 10 Leg 12 | . 27 7 . 2 Wheel 10 | . . 14 . 16 Device 8 | . 7 10 . 7 Storage 11 | . 14 11 . 11 Processor 9 | . 7 11 . 10 Energy Gun 4 | . 7 . . 4 Energy Cannon 22 | . 14 32 . 21 Ballistic Gun 2 | . 6 . . 2 Ballistic Cannon 1 | . . . . 3 Peak Build Rating 28 | 7 9 19 18 28 Average Rating 13 | 5 8 13 18 19 On Entrance 10 | . 7 9 18 18 Naked Turns . | . . . . . Heaviest Build 36 | 11 20 31 29 36 Greatest Support 40 | 20 20 32 32 40 Greatest Overweight (x) 2 | . 1 1 . 2 Average Overweight (x) . | . . . . . Largest Inventory Capacity 10 | 8 10 10 10 10 Average Capacity 9 | 7 9 10 10 10 Most Carried 10 | 5 10 10 9 10 Average Carried 8 | 2 8 8 9 9 Final Capacity 10 | 8 10 10 10 10 Final Carried 10 | 2 10 9 9 8 Class Distribution -------------------- 54% | Scavenger-Skirmisher 36% | Mutant 7% | Skirmisher Dominant Class ---------------- Mutant | -10/Materials Scavenger-Skirmisher | -9/Materials Scavenger-Skirmisher | -9/Mines Scavenger-Skirmisher | -7/Zion Resources | -11 -10 -9 -9 -7 ----------- Run | Yrd Mat Mat Min Zio Matter Collected 1177 | 167 293 313 . 404 Remotely . | . . . . . Salvage Created 3152 | 117 540 1611 . 884 Parts 192 | 14 38 75 . 65 Haulers Intercepted 2 | . . 2 . . Recyclers Shooed 6 | 1 3 2 . . Parts Field Recycled . | . . . . . Retrieved Matter . | . . . . . Parts Self-Destructed . | . . . . . Prevented . | . . . . . Kills | -11 -10 -9 -9 -7 ------- Run | Yrd Mat Mat Min Zio Combat Hostiles Destroyed 32 | . 10 19 . 3 Guns 8 | . 8 . . . Cannons 24 | . 2 19 . 3 Classes Destroyed 15 | 2 3 7 . 3 Worker 1 | . . 1 . . Builder 1 | . . 1 . . Tunneler 4 | 3 . 1 . . Hauler 2 | . . 2 . . Recycler 11 | 1 2 8 . . Mechanic 1 | . . 1 . . Watcher 6 | . 3 3 . . Swarmer 7 | . 3 4 . . Grunt 16 | . 7 9 . . Brawler 2 | . . 2 . . Duelist 1 | . . 1 . . Sentry 3 | . . 3 . . Zionite 39 | . . . . 39 Tinkerer 2 | . . . . 2 Savage 1 | . . . . 1 Mutant 2 | . . . . 2 Best Kill Streak 10 | 3 5 9 . 10 Combat Bots Only 7 | . 5 7 . 1 Max Kills in Single Turn 2 | 1 1 2 . 2 Gunslinging . | . . . . . Exploded . | . . . . . Melee . | . . . . . Uniques/NPCs Destroyed . | . . . . . Combat | -11 -10 -9 -9 -7 -------- Run | Yrd Mat Mat Min Zio Hostile Shots Fired 382 | . 52 61 . 269 Missed 128 | . 9 18 . 101 Damage Taken 2603 | . 367 357 . 1879 Core 548 | . 148 72 . 328 Absorbed by Shields . | . . . . . Ignored by Resistances 779 | . 115 110 . 554 Core Remaining (%) 70 | 100 40 . . . Volleys Fired 194 | 8 51 51 . 84 Largest 3 | 2 2 3 . 3 Hottest 204 | 40 120 204 . 197 Shots Fired 462 | 16 102 144 . 200 Gun 142 | 16 82 . . 44 Cannon 320 | . 20 144 . 156 Launcher . | . . . . . Special . | . . . . . Kinetic 143 | 16 54 . . 73 Thermal 319 | . 48 144 . 127 Explosive . | . . . . . Electromagnetic . | . . . . . Robot Hit Streak 29 | 14 29 24 . 26 Robot Miss Streak 4 | . 3 3 . 4 Penetration Max . | . . . . . Secondary Targets . | . . . . . Shots Hit Robots 280 | 14 74 85 . 107 Core Hits 129 | 8 26 39 . 56 Critical Kills 5 | . . 2 . 3 Critical Parts Destroyed 4 | . . . . 4 Critical Strikes 10 | . 1 2 . 7 Burn 1 | . 1 . . . Meltdown 3 | . . 2 . 1 Destroy 6 | . . . . 6 Melee Attacks 28 | . 1 . . 27 Impact 21 | . . . . 21 Slashing . | . . . . . Piercing 6 | . . . . 6 Sneak Attacks 1 | . 1 . . . Combat Hostiles . | . . . . . Follow-up Attacks . | . . . . . Damage Inflicted 4743 | 109 733 1672 . 2229 Guns 1306 | 109 647 . . 550 Cannons 3361 | . 86 1672 . 1603 Explosions . | . . . . . Melee 76 | . . . . 76 Ramming . | . . . . . Kinetic 1129 | 109 383 . . 637 Thermal 3538 | . 350 1672 . 1516 Explosive . | . . . . . Electromagnetic . | . . . . . Impact 76 | . . . . 76 Slashing . | . . . . . Piercing . | . . . . . Highest Corruption 6 | . . 2 2 6 Average Corruption 2 | . . 2 2 2 Corruption Purged . | . . . . . Corruption Blocked . | . . . . . Effects 10 | . . 9 . 1 Message Errors 1 | . . 1 . . Matter Fused 4 | . . 3 . 1 Heat Flow Errors 4 | . . 4 . . Data Loss (major) 1 | . . 1 . . Overload Shots . | . . . . . Overflow Damage 54 | . . 33 . 21 Projectiles 54 | . . 33 . 21 Explosions . | . . . . . Melee . | . . . . . Knockbacks 4 | . . . . 4 Impact 2 | . . . . 2 Kinetic 2 | . . . . 2 Secondary . | . . . . . Self-Inflicted Damage . | . . . . . Shots . | . . . . . Rammed . | . . . . . Targets Rammed . | . . . . . Kicked . | . . . . . Crushed . | . . . . . Highest Temperature 485 | . 220 434 . 485 Average Temperature 141 | . 66 138 . 176 Received Heat Transfer 627 | . 252 96 . 279 Effects 7 | . . 5 . 2 Shutdowns 3 | . . 2 . 1 Energy Bleed 2 | . . 1 . 1 Interference 1 | . . 1 . . Short Circuit 1 | . . 1 . . Siege Activations . | . . . . . Robots Corrupted . | . . . . . Combat Hostiles . | . . . . . Parts Fried . | . . . . . Impact Corruptions . | . . . . . Robots Melted 3 | . . 2 . 1 Combat Hostiles . | . . . . . Parts Melted 15 | . 1 5 . 9 Heat Transferred 7101 | . 1036 3367 . 2698 Parts Sabotaged . | . . . . . Parts Stolen . | . . . . . Parts Stripped . | . . . . . Power Chain Reactions . | . . . . . Alert | -11 -10 -9 -9 -7 ------- Run | Yrd Mat Mat Min Zio Peak Influence 345 | 20 303 345 101 . Initial 101 | . 11 25 101 . Average 121 | 8 81 182 101 . Maximum Alert Level 1 | . 1 1 . . Low Security (%) 65 | 100 81 43 100 . Level 1 34 | . 18 56 . . Level 2 . | . . . . . Level 3 . | . . . . . Level 4 . | . . . . . Level 5 . | . . . . . High Security . | . . . . . Max Security . | . . . . . Squads Dispatched 2 | . 1 1 . . Investigation 1 | . 1 . . . Extermination . | . . . . . Reinforcement 1 | . . 1 . . Assault . | . . . . . Garrison . | . . . . . Intercept . | . . . . . Searches Triggered . | . . . . . Construction Impeded 1 | . . 1 . . Haulers Reinforced . | . . . . . Active Scanning Responses . | . . . . . Cargo Convoy Interrupts . | . . . . . Stealth | -11 -10 -9 -9 -7 --------- Run | Yrd Mat Mat Min Zio Distress Signals 2 | . . 2 . . Communications Jammed . | . . . . . Distress Signals . | . . . . . Times Spotted 104 | . 17 32 . 55 Peak Tracking Total 14 | . 5 6 . 14 Tactical Retreats 9 | . 3 3 . 3 Traps | -11 -10 -9 -9 -7 ------- Run | Yrd Mat Mat Min Zio Traps Triggered 4 | . 4 . . . Indirectly . | . . . . . Trap Hack Attempts . | . . . . . Triggered . | . . . . . Disarmed . | . . . . . Reprogrammed . | . . . . . Reused . | . . . . . Traps Extracted . | . . . . . Installed . | . . . . . Triggered . | . . . . . Machines | -11 -10 -9 -9 -7 ---------- Run | Yrd Mat Mat Min Zio Machines Disabled 2 | . . 1 . 1 Max in Single Turn 1 | . . 1 . 1 Machines Repaired . | . . . . . Machines Dismantled . | . . . . . Machines Sabotaged . | . . . . . Overloaded Fab Kills . | . . . . . Hacking | -11 -10 -9 -9 -7 --------- Run | Yrd Mat Mat Min Zio Machines Accessed 9 | . 8 1 . . Terminals 6 | . 6 . . . Fabricators . | . . . . . Repair Stations . | . . . . . Recycling Units 3 | . 2 1 . . Scanalyzers . | . . . . . Garrison Access . | . . . . . Total Hacks 26 | . 24 2 . . Successful 15 | . 13 2 . . Failed 11 | . 11 . . . Catastrophic . | . . . . . Database Lockouts . | . . . . . Manual 3 | . 1 1 . 1 Terminals 18 | . 18 . . . Fabricators . | . . . . . Repair Stations . | . . . . . Recycling Units 8 | . 6 2 . . Scanalyzers . | . . . . . Garrison Access . | . . . . . Terminal Hacks 10 | . 10 . . . Robot Analysis 1 | . 1 . . . Prototype ID Bank 2 | . 2 . . . Alert Level 1 | . 1 . . . Unreport Threat 1 | . 1 . . . Dispatch Records 1 | . 1 . . . Security Status 1 | . 1 . . . Patrol Status 2 | . 2 . . . Hauler Manifests 1 | . 1 . . . Fabricator Hacks . | . . . . . Repair Station Hacks . | . . . . . Recycling Unit Hacks 3 | . 2 1 . . Retrieve Components 3 | . 2 1 . . Scanalyzer . | . . . . . Garrison Access Hacks . | . . . . . Unauthorized Hacks 2 | . 1 1 . . Terminals . | . . . . . Fabricators . | . . . . . Repair Stations . | . . . . . Recycling Units 2 | . 1 1 . . Recyclers 2 | . 1 1 . . Scanalyzers . | . . . . . Garrison Access . | . . . . . Data Cores Recovered . | . . . . . Used . | . . . . . Hacking Detections 6 | . 5 1 . . Full Trace Events . | . . . . . Feedback Events . | . . . . . Feedback Blocked . | . . . . . Robot Schematics Acquired . | . . . . . Robots Built . | . . . . . Authchips . | . . . . . Time . | . . . . . Total Robot Build Rating . | . . . . . Part Schematics Acquired . | . . . . . Parts Built . | . . . . . Authchips . | . . . . . Time . | . . . . . Total Part Build Rating . | . . . . . Parts Repaired . | . . . . . Time . | . . . . . Parts Recycled . | . . . . . Recycled Matter . | . . . . . Retrieved Matter . | . . . . . Retrieved Components 13 | . 11 2 . . Parts Scanalyzed . | . . . . . Part Schematics Acquired . | . . . . . Parts Damaged . | . . . . . Bothacking | -11 -10 -9 -9 -7 ------------ Run | Yrd Mat Mat Min Zio Used RIF Installer . | . . . . . Robots Hacked 1 | . 1 . . . Non-combat 1 | . 1 . . . Combat . | . . . . . Robot Hacks Applied 1 | . 1 . . . find_recycling 1 | . 1 . . . Relay Couplers Released . | . . . . . Fabnet Peak Effective % . | . . . . . Robots Rewired . | . . . . . Allies Hacked . | . . . . . Hacks Repelled . | . . . . . Allies | -11 -10 -9 -9 -7 -------- Run | Yrd Mat Mat Min Zio Total Allies . | . . . . . Largest Group . | . . . . . Highest-Rated Group . | . . . . . Highest-Rated Ally . | . . . . . Total Orders . | . . . . . Ally Attacks . | . . . . . Total Damage . | . . . . . Kills . | . . . . . Allies Corrupted . | . . . . . Allies Melted . | . . . . . Intel | -11 -10 -9 -9 -7 ------- Run | Yrd Mat Mat Min Zio Robot Analysis Total 1 | . 1 . . . Derelict Logs Recovered 1 | . . . . 1 Drone Launches . | . . . . . Drone Recoveries . | . . . . . Exploration | -11 -10 -9 -9 -7 ------------- Run | Yrd Mat Mat Min Zio Turns Passed 3353 | 113 1043 908 4 1285 Spaces Moved 1947 | 57 615 472 4 799 Core 6 | 6 . . . . Treads . | . . . . . Legs 838 | 51 615 106 . 66 Wheels 1103 | . . 366 4 733 Hover . | . . . . . Flight . | . . . . . Fastest Speed 50 | 50 120 100 100 100 Average Speed 115 | 112 120 120 100 108 Slowest Speed 210 | 120 190 190 100 210 Overloaded Moves . | . . . . . Propulsion Burnouts . | . . . . . Robots Hopped . | . . . . . Cave-ins Triggered . | . . . . . Exploration Rate (%) 36 | 5 74 31 4 66 Regions Visited 4 Branch Regions 2 Pre-discovered Areas 2 | . . . . 2 Known Exits Taken . | . . . . . Unknown Exits Taken 4 | 1 1 1 1 . Scrap Searched 1 | . . . . 1 Spaces Dug . | . . . . . Terrain Destroyed . | . . . . . Melee . | . . . . . Projectile . | . . . . . AOE . | . . . . . Terrain Rammed . | . . . . . Walls Destroyed . | . . . . . Machines Disabled . | . . . . . Actions | -11 -10 -9 -9 -7 --------- Run | Yrd Mat Mat Min Zio Total 2676 | 94 838 710 4 1030 Wait 280 | 8 86 107 1 78 Move 1943 | 56 614 471 3 799 Hop . | . . . . . Pick Up 93 | 12 40 27 . 14 Fast Attach . | . . . . . Attach 46 | 7 12 18 . 9 Detach 7 | . 2 5 . . Swap 24 | . 7 7 . 10 Drop 61 | 3 25 24 . 9 Fire 194 | 8 51 51 . 84 Melee 28 | . 1 . . 27 Ram . | . . . . . Kick . | . . . . . Crush . | . . . . . Escape Stasis . | . . . . . Rewire . | . . . . . Trap . | . . . . . Miscellaneous . | . . . . . Route ------- -11/Scrapyard -10/Materials (discovered 2 exits: *Mat x2) -9/Materials -9/Mines -7/Zion History --------- Turn | Location | Event 35 | -11/Scrapyard | Discovered new exit (range 15) 114 | -11/Scrapyard | Entered Materials 303 | -10/Materials | Core integrity fell below 50% 310 | -10/Materials | Build established: Mutant 668 | -10/Materials | Discovered new exit (range 17) 1054 | -10/Materials | Discovered new exit (range 5) 1157 | -10/Materials | Entered another Materials area 1157 | -9/Materials | Evolved 2 slots: Utility x1, Weapon x1 1462 | -9/Materials | Build established: Scavenger-Skirmisher 1926 | -9/Materials | Discovered new exit (range 17) 2009 | -9/Materials | Destroyed 7 combat bots 2065 | -9/Materials | Entered Mines 2066 | -9/Mines | A Derelict revealed a hidden shortcut to a safe place 2069 | -9/Mines | Entered Zion 2113 | -7/Zion | Received a visual enhancement algorithm 2172 | -7/Zion | System corruption cleaned by Quarantine Array 2446 | -7/Zion | Learned location of Storage (-7) 2802 | -7/Zion | Attacked by Zionites 2905 | -7/Zion | Lost 3 parts (2n1w) 3317 | -7/Zion | Core integrity fell below 50% 3351 | -7/Zion | Core integrity fell below 20% 3354 | -7/Zion | Destroyed by PV-4MJ(z) with Makeshift Shrapnel Gun Last Messages --------------- 03339_ FX-M3H(z) overheating. 03339_ 6X-DGX(z) destroyed. 03340_ FX-M3H(z) overheating. 03341_ 85-0PZ(z) destroyed. 03342_ FX-M3H(z) overheating. 03343_ FX-M3H(z) heat damages core (-3). 03346_ FX-M3H(z) heat spikes uncontrollably. 03346_ NY-T7L(z) destroyed. EK-O8F(z) bursts out of the Twisted Machinery. 03349_ EK-O8F(z) pulls a Mak. Hammer out of the Twisted Machinery. YD-T83(z) bursts out of the Twisted Machinery. 03352_ Critical hit (Burn: +37). 03352_ YD-T83(z) pulls a Mak. Spear out of the Twisted Machinery. 03353_ FX-M3H(z) heat damages core (-3). 03353_ Particle Cannon destroyed. 03353_ System corrupted by crushing effect (+2). 03354_ Critical hit (Impale). [Achievement: Back For More] Map ----- +----------------------------------------------------+ | """#???????????????????###??### """""" | | ""##??????????????????????????## """"""" | | """#?????????????????????????### """ """"""" | | ""##????????????????????????#"" """ "#"## | | """#????????????????????????##" " | | ""##?????????????????????????#"" ## | | ""#???????????????????########"" # | | ""#"#?????####?????????#[[[[[###" " """ | | ""#?#????##" "##???????# [##" = """ """ | | #"#?????##" " #???????#! |#"" %* """"" """ | | ###?????#"" [#???????##" "####%/= # | | "#????###"" " #????????# ###" = ## | | "#????#"#"" "##?????#### ##"" """" | | "######"""" #?#####"#" " % """" | | ""#"""##"""" ###"#"#"" " """ " | | """"""#""" # #"""""""""" """""" """? | | """""" "" """ """"#" "?"?" | | z ""##??????? | | %= "#???????? | | " """"?????? | | "" """ """"#"" """""?????? | | "" "" """ ! / """"""""""""" ????? | | " """""" =g==%% """""""""" ???? | | """""" """" /%**%=== c ????? | | """"""""#""#% //%=% ????? | | """##""##""""=%@!= """""""" "???? | | """ "########"""/= zz/ ""##"#""???? ""???? | | """"""""""""#?????#"" " " "##?##??????? ""????? | | #""##"""""""#????#"" "###??????????????????? | | "#####"######????##"" ""#????????????????????? | | ##???###??????????##" ""##????????????????????? | | ??????????????????#"" """""#?????????????????????? | | ??????????????????##""""""##?????????????????????? | | ???????????????????"""#"###??????????????????????? | | ???????????????????#"#?#?????????????????????????? | | ?????????????????????????????????????????????????? | | ?????????????????????????????????????????????????? | | ?????????????????????????????????????????????????? | | ?????????????????????????????????????????????????? | | ?????????????????????????????????????????????????? | | ?????????????????????????????????????????????????? | | ?????????????????????????????????????????????????? | | ?????????????????????????????????????????????????? | | ?????????????????????????????????????????????????? | | ?????????????????????????????????????????????????? | | ?????????????????????????????????????????????????? | | ?????????????????????????????????????????????????? | | ?????????????????????????????????????????????????? | | ?????????????????????????????????????????????????? | | ?????????????????????????????????????????????????? | +----------------------------------------------------+ Best States ------------- Heat Dissipation 38 Energy Generation 14 Energy Capacity 280 Matter Stores 300 Matter Capacity 300 Sight Range 18 Terrain Scan Density 10 Armor Coverage 100 Resistance: KI 20 Resistance: TH 20 Resistance: EX 20 Resistance: EM 20 Resistance: I 20 Resistance: S 20 Resistance: P 20 Evasion (%) 55 Offensive Hacking 10 Item Schematics ----------------- None Robot Schematics ------------------ None Fabricated ------------ Nothing Alien Tech Used ----------------- None Achievements -------------- Back For More Monster Challenges ------------ None Game ------ Seed ArmoredSpacefoldBay Manual? 0 Play Time 00:56:30 Cumulative 68.2 hours Start 2025.05.02 @ 00:54:52 End 2025.05.02 @ 01:57:51 Sessions 1 Manual Loads 0 Difficulty Adventurer Special Mode None Game No. 50 Rogue 38 Adventurer 12 Explorer 0 Win Type - Total 0 Types 0/0/0/0/0/0/0/0/0 Lore% 29 Gallery% 43 Achievement% 41 Wizard Run 0 Options --------- Layout 1 ASCII 0 Keyboard 1 Movement Numpad Keybinds 0 Fullscreen 2 Font 24/Smallcaps Map View 50x35 Zoom Use 0% Tactical HUD 1 Map Filters NONE Filters NONE Steam 1 RUN: e87ecee3-4a55-46b9-90ef-f26de416a2c3